[Event "MČR družstev mladších žáků 2024"]
[Site "Harrachov, Czech Republic"]
[Date "2024.06.15"]
[Round "7.25"]
[White "Burel Jan"]
[Black "Policar Martin"]
[Result "1/2-1/2"]
[TimeControl "25+10"]
[WhiteFideId "23754907"]
[BlackFideId "23734868"]
[WhiteElo "1172"]
[BlackElo "1646"]

1. e4 {[%clk 00:25:17]} {[%emt 00:00:02]} c5 {[%clk 00:25:13]} {[%emt
00:00:08]} 2. Nf3 {[%clk 00:25:21]} {[%emt 00:00:04]} Nf6 {[%clk 00:25:20]}
{[%emt 00:00:05]} 3. Nc3 {[%clk 00:25:22]} {[%emt 00:00:07]} d5 {[%clk
00:25:27]} {[%emt 00:00:05]} 4. exd5 {[%clk 00:25:26]} {[%emt 00:00:06]} Nxd5
{[%clk 00:25:35]} {[%emt 00:00:02]} 5. Nxd5 {[%clk 00:25:12]} {[%emt 00:00:23]}
Qxd5 {[%clk 00:25:40]} {[%emt 00:00:05]} 6. b3 {[%clk 00:25:13]} {[%emt
00:00:09]} Nc6 {[%clk 00:25:44]} {[%emt 00:00:08]} 7. Bc4 {[%clk 00:25:13]}
{[%emt 00:00:08]} Qe4+ {[%clk 00:25:51]} {[%emt 00:00:03]} 8. Qe2 {[%clk
00:25:15]} {[%emt 00:00:07]} Qxe2+ {[%clk 00:25:44]} {[%emt 00:00:19]} 9. Kxe2
{[%clk 00:25:21]} {[%emt 00:00:03]} Bg4 {[%clk 00:25:49]} {[%emt 00:00:06]} 10.
Bb2 {[%clk 00:25:18]} {[%emt 00:00:11]} e6 {[%clk 00:24:53]} {[%emt 00:01:08]}
11. Rhe1 {[%clk 00:25:16]} {[%emt 00:00:11]} O-O-O {[%clk 00:24:50]} {[%emt
00:00:14]} 12. Rad1 {[%clk 00:24:48]} {[%emt 00:00:37]} Nb4 {[%clk 00:23:52]}
{[%emt 00:01:09]} 13. c3 {[%clk 00:24:38]} {[%emt 00:00:19]} Nd5 {[%clk
00:23:44]} {[%emt 00:00:19]} 14. Bxd5 {[%clk 00:24:32]} {[%emt 00:00:15]} exd5
{[%clk 00:23:24]} {[%emt 00:00:31]} 15. h3 {[%clk 00:24:29]} {[%emt 00:00:12]}
Bxf3+ {[%clk 00:22:48]} {[%emt 00:00:48]} 16. Kxf3 {[%clk 00:24:32]} {[%emt
00:00:05]} Bd6 {[%clk 00:22:53]} {[%emt 00:00:05]} 17. c4 {[%clk 00:24:30]}
{[%emt 00:00:11]} d4 {[%clk 00:22:53]} {[%emt 00:00:12]} 18. d3 {[%clk
00:24:29]} {[%emt 00:00:10]} Rhe8 {[%clk 00:22:55]} {[%emt 00:00:10]} 19. Bc1
{[%clk 00:24:29]} {[%emt 00:00:08]} Bc7 {[%clk 00:22:48]} {[%emt 00:00:18]} 20.
Bd2 {[%clk 00:24:09]} {[%emt 00:00:28]} Kd7 {[%clk 00:22:32]} {[%emt 00:00:28]}
21. Rxe8 {[%clk 00:24:11]} {[%emt 00:00:08]} Rxe8 {[%clk 00:22:39]} {[%emt
00:00:03]} 22. Re1 {[%clk 00:24:18]} {[%emt 00:00:02]} Rxe1 {[%clk 00:22:21]}
{[%emt 00:00:29]} 23. Bxe1 {[%clk 00:24:25]} {[%emt 00:00:03]} f5 {[%clk
00:22:19]} {[%emt 00:00:11]} 24. g4 {[%clk 00:24:29]} {[%emt 00:00:07]} g6
{[%clk 00:22:10]} {[%emt 00:00:20]} 25. Bd2 {[%clk 00:24:30]} {[%emt 00:00:07]}
Ke6 {[%clk 00:21:53]} {[%emt 00:00:28]} 26. Kg2 {[%clk 00:24:34]} {[%emt
00:00:04]} Kf6 {[%clk 00:21:36]} {[%emt 00:00:29]} 27. g5+ {[%clk 00:24:38]}
{[%emt 00:00:05]} Ke6 {[%clk 00:21:00]} {[%emt 00:00:47]} 28. f4 {[%clk
00:24:45]} {[%emt 00:00:03]} a6 {[%clk 00:20:28]} {[%emt 00:00:43]} 29. a4
{[%clk 00:24:52]} {[%emt 00:00:01]} b5 {[%clk 00:20:08]} {[%emt 00:00:31]} 30.
axb5 {[%clk 00:24:58]} {[%emt 00:00:04]} axb5 {[%clk 00:20:16]} {[%emt
00:00:02]} 31. cxb5 {[%clk 00:25:05]} {[%emt 00:00:02]} Kd7 {[%clk 00:20:22]}
{[%emt 00:00:05]} 32. Kf1 {[%clk 00:25:05]} {[%emt 00:00:10]} Kc8 {[%clk
00:20:29]} {[%emt 00:00:03]} 33. Ke1 {[%clk 00:25:08]} {[%emt 00:00:06]} Kb7
{[%clk 00:20:38]} {[%emt 00:00:03]} 34. Kd1 {[%clk 00:25:09]} {[%emt 00:00:08]}
Kb6 {[%clk 00:20:45]} {[%emt 00:00:03]} 35. Kc2 {[%clk 00:25:08]} {[%emt
00:00:09]} Kxb5 {[%clk 00:20:53]} {[%emt 00:00:04]} 36. Kb2 {[%clk 00:25:14]}
{[%emt 00:00:03]} Bd8 {[%clk 00:20:25]} {[%emt 00:00:40]} 37. Kb1 {[%clk
00:24:48]} {[%emt 00:00:34]} Bc7 {[%clk 00:20:06]} {[%emt 00:00:30]} 38. h4
{[%clk 00:24:45]} {[%emt 00:00:12]} Bb6 {[%clk 00:20:10]} {[%emt 00:00:07]} 39.
Kb2 {[%clk 00:24:41]} {[%emt 00:00:13]} Bc7 {[%clk 00:20:18]} {[%emt 00:00:03]}
40. Kb1 {[%clk 00:24:47]} {[%emt 00:00:04]} Bd6 {[%clk 00:20:26]} {[%emt
00:00:03]} 41. Kb2 {[%clk 00:24:50]} {[%emt 00:00:05]} Bc7 {[%clk 00:20:03]}
{[%emt 00:00:35]} 42. Kc2 {[%clk 00:24:29]} {[%emt 00:00:27]} Kc6 {[%clk
00:18:49]} {[%emt 00:01:28]} 43. Kc1 {[%clk 00:24:19]} {[%emt 00:00:15]} Kd7
{[%clk 00:18:55]} {[%emt 00:00:08]} 44. Kd1 {[%clk 00:24:26]} {[%emt 00:00:02]}
Ke6 {[%clk 00:19:03]} {[%emt 00:00:03]} 45. Ke2 {[%clk 00:24:32]} {[%emt
00:00:01]} h6 {[%clk 00:19:08]} {[%emt 00:00:05]} 46. Ke1 {[%clk 00:24:34]}
{[%emt 00:00:10]} hxg5 {[%clk 00:19:13]} {[%emt 00:00:07]} 47. hxg5 {[%clk
00:24:40]} {[%emt 00:00:04]} Kd5 {[%clk 00:19:21]} {[%emt 00:00:02]} 48. Kd1
{[%clk 00:24:43]} {[%emt 00:00:06]} Kd6 {[%clk 00:19:29]} {[%emt 00:00:01]} 49.
Kc2 {[%clk 00:24:41]} {[%emt 00:00:12]} Kd5 {[%clk 00:19:36]} {[%emt 00:00:04]}
50. Kd1 {[%clk 00:24:46]} {[%emt 00:00:04]} Kc6 {[%clk 00:19:24]} {[%emt
00:00:24]} 51. Kc2 {[%clk 00:24:53]} {[%emt 00:00:01]} Kb6 {[%clk 00:19:31]}
{[%emt 00:00:04]} 52. Kb1 {[%clk 00:24:53]} {[%emt 00:00:09]} Kb5 {[%clk
00:19:39]} {[%emt 00:00:03]} 53. Kb2 {[%clk 00:25:00]} {[%emt 00:00:02]} Bd6
{[%clk 00:19:37]} {[%emt 00:00:14]} 54. Kb1 {[%clk 00:25:00]} {[%emt 00:00:09]}
Be7 {[%clk 00:19:05]} {[%emt 00:00:41]} 55. Kb2 {[%clk 00:25:02]} {[%emt
00:00:08]} Kc6 {[%clk 00:18:19]} {[%emt 00:00:57]} 56. Kc1 {[%clk 00:25:08]}
{[%emt 00:00:03]} Kd5 {[%clk 00:18:28]} {[%emt 00:00:02]} 57. Kd1 {[%clk
00:25:14]} {[%emt 00:00:03]} Bd8 {[%clk 00:18:34]} {[%emt 00:00:05]} 58. Kc2
{[%clk 00:25:17]} {[%emt 00:00:06]} Bc7 {[%clk 00:17:39]} {[%emt 00:01:06]} 59.
Kd1 {[%clk 00:25:22]} {[%emt 00:00:04]} Kc6 {[%clk 00:17:38]} {[%emt 00:00:12]}
60. Kc2 {[%clk 00:25:30]} {[%emt 00:00:02]} Bb6 {[%clk 00:16:54]} {[%emt
00:00:55]} 61. Kc1 {[%clk 00:25:35]} {[%emt 00:00:04]} Ba7 {[%clk 00:17:03]}
{[%emt 00:00:01]} 62. Kc2 {[%clk 00:25:42]} {[%emt 00:00:04]} Kb5 {[%clk
00:17:10]} {[%emt 00:00:03]} 63. Kb2 {[%clk 00:25:46]} {[%emt 00:00:05]} c4
{[%clk 00:17:07]} {[%emt 00:00:14]} 64. bxc4+ {[%clk 00:25:51]} {[%emt
00:00:04]} Ka4 {[%clk 00:17:12]} {[%emt 00:00:05]} 65. Ka2 {[%clk 00:25:58]}
{[%emt 00:00:03]} Bc5 {[%clk 00:17:17]} {[%emt 00:00:05]} 66. Kb2 {[%clk
00:25:44]} {[%emt 00:00:23]} Be7 {[%clk 00:17:23]} {[%emt 00:00:05]} 67. Ka2
{[%clk 00:25:44]} {[%emt 00:00:10]} Ba3 {[%clk 00:17:31]} {[%emt 00:00:02]} 68.
Ba5 {[%clk 00:25:00]} {[%emt 00:00:53]} Bc1 {[%clk 00:17:27]} {[%emt 00:00:14]}
69. Bc7 {[%clk 00:25:07]} {[%emt 00:00:02]} Kb4 {[%clk 00:15:51]} {[%emt
00:01:49]} 70. Kb1 {[%clk 00:25:13]} {[%emt 00:00:02]} Bd2 {[%clk 00:15:39]}
{[%emt 00:00:23]} 71. Kc2 {[%clk 00:25:20]} {[%emt 00:00:03]} Bc3 {[%clk
00:15:47]} {[%emt 00:00:03]} 72. Be5 {[%clk 00:25:23]} {[%emt 00:00:05]} Kc5
{[%clk 00:15:52]} {[%emt 00:00:06]} 73. Bb8 {[%clk 00:25:27]} {[%emt 00:00:05]}
Kb6 {[%clk 00:15:18]} {[%emt 00:00:45]} 74. Be5 {[%clk 00:25:31]} {[%emt
00:00:04]} Kc6 {[%clk 00:15:25]} {[%emt 00:00:06]} 75. Bb8 {[%clk 00:25:38]}
{[%emt 00:00:02]} Bb4 {[%clk 00:15:25]} {[%emt 00:00:10]} 76. Be5 {[%clk
00:25:41]} {[%emt 00:00:05]} Bc5 {[%clk 00:15:13]} {[%emt 00:00:24]} 77. Kb3
{[%clk 00:25:45]} {[%emt 00:00:07]} Kb6 {[%clk 00:15:21]} {[%emt 00:00:02]} 78.
Bb8 {[%clk 00:25:47]} {[%emt 00:00:05]} Kc6 {[%clk 00:15:25]} {[%emt 00:00:08]}
79. Be5 {[%clk 00:25:54]} {[%emt 00:00:03]} Kb7 {[%clk 00:15:33]} {[%emt
00:00:03]} 80. Kc2 {[%clk 00:25:58]} {[%emt 00:00:06]} Ba7 {[%clk 00:15:22]}
{[%emt 00:00:19]} 81. Bd6 {[%clk 00:25:52]} {[%emt 00:00:16]} Kc6 {[%clk
00:15:26]} {[%emt 00:00:03]} 82. Be5 {[%clk 00:25:51]} {[%emt 00:00:14]} Kd7
{[%clk 00:14:28]} {[%emt 00:01:10]} 83. Kb3 {[%clk 00:25:56]} {[%emt 00:00:04]}
Kc6 {[%clk 00:14:36]} {[%emt 00:00:02]} 84. Kc2 {[%clk 00:26:04]} {[%emt
00:00:02]} Bc5 {[%clk 00:14:04]} {[%emt 00:00:41]} 85. Bb8 {[%clk 00:26:09]}
{[%emt 00:00:06]} Bb4 {[%clk 00:13:53]} {[%emt 00:00:15]} 86. Be5 {[%clk
00:26:16]} {[%emt 00:00:09]} Bc3 {[%clk 00:13:48]} {[%emt 00:00:15]} 87. Bb8
{[%clk 00:26:19]} {[%emt 00:00:07]} Be1 {[%clk 00:13:56]} {[%emt 00:00:02]} 88.
Be5 {[%clk 00:26:24]} {[%emt 00:00:04]} Bf2 {[%clk 00:14:04]} {[%emt 00:00:04]}
89. Bb8 {[%clk 00:26:30]} {[%emt 00:00:03]} Be3 {[%clk 00:13:43]} {[%emt
00:00:31]} 90. Be5 {[%clk 00:26:31]} {[%emt 00:00:08]} 1/2-1/2



[ePGN "0.1;DGT LiveChess/2.2.6"]

[Event "MČR družstev mladších žáků 2024"]
[Site "Harrachov, Czech Republic"]
[Date "2024.06.15"]
[Round "7.26"]
[White "Sudrich Radek"]
[Black "Stepnicka Filip"]
[Result "1-0"]
[TimeControl "25+10"]
[WhiteFideId "23734361"]
[BlackFideId "23771542"]
[WhiteElo "1470"]
[BlackElo "1116"]

1. d4 {[%clk 00:25:18]} {[%emt 00:00:01]} d5 {[%clk 00:25:17]} {[%emt
00:00:03]} 2. Bf4 {[%clk 00:25:27]} {[%emt 00:00:02]} c5 {[%clk 00:25:20]}
{[%emt 00:00:06]} 3. e3 {[%clk 00:25:35]} {[%emt 00:00:02]} Nc6 {[%clk
00:25:15]} {[%emt 00:00:15]} 4. Nc3 {[%clk 00:25:42]} {[%emt 00:00:03]} Nf6
{[%clk 00:24:26]} {[%emt 00:00:59]} 5. Nb5 {[%clk 00:25:48]} {[%emt 00:00:04]}
e5 {[%clk 00:24:04]} {[%emt 00:00:32]} 6. Bxe5 {[%emt 00:00:09]} Nxe5 {[%clk
00:24:06]} {[%emt 00:00:01]} 7. dxe5 {[%clk 00:26:04]} {[%emt 00:00:02]} Ne4
{[%clk 00:23:53]} {[%emt 00:00:21]} 8. Qxd5 {[%clk 00:24:43]} {[%emt 00:01:33]}
Qxd5 {[%clk 00:22:24]} {[%emt 00:01:40]} 9. Nc7+ {[%clk 00:24:51]} Kd7 {[%clk
00:22:14]} {[%emt 00:00:18]} 10. Nxd5 {[%clk 00:24:56]} {[%emt 00:00:04]} Kd8
{[%clk 00:21:46]} {[%emt 00:00:35]} 11. Bd3 {[%clk 00:24:51]} {[%emt 00:00:21]}
Ng5 {[%clk 00:21:21]} {[%emt 00:00:30]} 12. O-O-O {[%clk 00:24:41]} {[%emt
00:00:25]} Ne6 {[%clk 00:20:11]} {[%emt 00:01:19]} 13. Bb5 {[%clk 00:24:46]}
{[%emt 00:00:06]} Bd7 {[%clk 00:19:46]} {[%emt 00:00:32]} 14. Bxd7 {[%clk
00:24:54]} {[%emt 00:00:05]} Kxd7 {[%clk 00:19:35]} {[%emt 00:00:21]} 15. Nb6+
{[%clk 00:25:02]} {[%emt 00:00:02]} Kc6 {[%clk 00:19:29]} {[%emt 00:00:15]} 16.
Nxa8 {[%clk 00:25:08]} {[%emt 00:00:03]} Be7 {[%clk 00:19:26]} {[%emt
00:00:14]} 17. Nf3 {[%clk 00:25:06]} {[%emt 00:00:13]} Rxa8 {[%clk 00:19:29]}
{[%emt 00:00:07]} 18. h4 {[%clk 00:25:06]} {[%emt 00:00:11]} f6 {[%clk
00:19:27]} {[%emt 00:00:10]} 19. exf6 {[%clk 00:25:10]} {[%emt 00:00:07]} Bxf6
{[%clk 00:19:33]} {[%emt 00:00:04]} 20. Ng5 {[%clk 00:25:09]} {[%emt 00:00:11]}
Bxg5 {[%clk 00:19:23]} {[%emt 00:00:19]} 21. hxg5 {[%clk 00:25:17]} {[%emt
00:00:03]} Nxg5 {[%clk 00:19:31]} {[%emt 00:00:02]} 22. Rh5 {[%clk 00:25:21]}
{[%emt 00:00:06]} h6 {[%clk 00:19:16]} {[%emt 00:00:25]} 23. f4 {[%clk
00:24:54]} {[%emt 00:00:37]} Ne4 {[%clk 00:19:18]} {[%emt 00:00:05]} 24. Re5
{[%clk 00:24:55]} {[%emt 00:00:10]} Ng3 {[%clk 00:18:51]} {[%emt 00:00:36]} 25.
Re6+ {[%clk 00:24:41]} {[%emt 00:00:26]} Kb5 {[%clk 00:18:53]} {[%emt
00:00:08]} 26. Rd7 {[%clk 00:24:30]} {[%emt 00:00:22]} b6 {[%clk 00:18:44]}
{[%emt 00:00:14]} 27. Rxg7 {[%clk 00:24:30]} {[%emt 00:00:15]} Nf5 {[%clk
00:18:47]} {[%emt 00:00:05]} 28. Rgg6 {[%clk 00:24:36]} {[%emt 00:00:06]} Nh4
{[%clk 00:18:11]} {[%emt 00:00:45]} 29. Rxh6 {[%clk 00:24:28]} {[%emt
00:00:19]} Nxg2 {[%clk 00:18:14]} {[%emt 00:00:06]} 30. Kd2 {[%clk 00:24:26]}
{[%emt 00:00:10]} Rd8+ {[%clk 00:18:13]} {[%emt 00:00:13]} 31. Ke2 {[%clk
00:24:34]} {[%emt 00:00:03]} Ka5 {[%clk 00:17:41]} {[%emt 00:00:39]} 32. Reg6
{[%clk 00:24:40]} {[%emt 00:00:06]} Nxf4+ {[%clk 00:17:37]} {[%emt 00:00:15]}
33. exf4 {[%clk 00:24:48]} {[%emt 00:00:02]} Re8+ {[%clk 00:17:44]} {[%emt
00:00:03]} 34. Kf3 {[%clk 00:24:57]} {[%emt 00:00:02]} Rd8 {[%clk 00:17:49]}
{[%emt 00:00:04]} 35. f5 {[%clk 00:25:05]} {[%emt 00:00:02]} Rd2 {[%clk
00:17:57]} {[%emt 00:00:02]} 36. Kg4 {[%clk 00:25:12]} {[%emt 00:00:03]} Rxc2
{[%clk 00:18:04]} {[%emt 00:00:03]} 37. Rg5 {[%clk 00:25:07]} {[%emt 00:00:14]}
Rxb2 {[%clk 00:17:59]} {[%emt 00:00:16]} 38. f6 {[%clk 00:25:14]} {[%emt
00:00:03]} Rxa2 {[%clk 00:18:02]} {[%emt 00:00:07]} 39. f7 {[%clk 00:25:21]}
{[%emt 00:00:03]} Rf2 {[%clk 00:17:59]} {[%emt 00:00:03]} 40. Rf5 {[%clk
00:25:29]} {[%emt 00:00:02]} Rxf5 {[%clk 00:18:01]} {[%emt 00:00:18]} 41. Kxf5
{[%clk 00:25:37]} {[%emt 00:00:02]} c4 {[%clk 00:18:03]} {[%emt 00:00:07]} 42.
f8=Q {[%clk 00:25:45]} {[%emt 00:00:03]} Ka4 {[%clk 00:17:37]} {[%emt
00:00:36]} 43. Rh3 {[%clk 00:25:48]} {[%emt 00:00:07]} Kb5 {[%clk 00:17:39]}
{[%emt 00:00:07]} 44. Qa3 {[%clk 00:25:54]} {[%emt 00:00:04]} a5 {[%clk
00:17:33]} {[%emt 00:00:16]} 45. Ke5 {[%clk 00:26:03]} {[%emt 00:00:02]} a4
{[%clk 00:17:31]} {[%emt 00:00:12]} 46. Kd5 {[%clk 00:26:09]} {[%emt 00:00:03]}
Ka5 {[%clk 00:17:11]} {[%emt 00:00:28]} 47. Rh7 {[%clk 00:26:17]} {[%emt
00:00:05]} Kb5 {[%clk 00:17:08]} {[%emt 00:00:09]} 48. Ra7 {[%clk 00:26:05]}
{[%emt 00:00:14]} c3 {[%clk 00:17:12]} {[%emt 00:00:07]} 49. Qxa4# {[%clk
00:26:23]} {[%emt 00:00:03]} 1-0



[ePGN "0.1;DGT LiveChess/2.2.6"]

[Event "MČR družstev mladších žáků 2024"]
[Site "Harrachov, Czech Republic"]
[Date "2024.06.15"]
[Round "7.27"]
[White "Vanousek Zdenek"]
[Black "Moravec Rene"]
[Result "0-1"]
[TimeControl "25+10"]
[WhiteFideId "23770244"]
[BlackFideId "23745274"]
[WhiteElo "1309"]
[BlackElo "1295"]

1. e4 {[%clk 00:25:14]} {[%emt 00:00:02]} c5 {[%clk 00:25:13]} {[%emt
00:00:10]} 2. Nf3 {[%clk 00:25:09]} {[%emt 00:00:12]} Nc6 {[%clk 00:25:12]}
{[%emt 00:00:11]} 3. Nc3 {[%clk 00:24:54]} {[%emt 00:00:25]} Nf6 {[%clk
00:25:16]} {[%emt 00:00:07]} 4. Bc4 {[%clk 00:24:39]} {[%emt 00:00:27]} g6
{[%clk 00:25:13]} {[%emt 00:00:12]} 5. d3 {[%clk 00:24:35]} {[%emt 00:00:13]}
Bg7 {[%clk 00:25:18]} {[%emt 00:00:05]} 6. Be3 {[%clk 00:24:23]} {[%emt
00:00:20]} d6 {[%clk 00:25:12]} {[%emt 00:00:20]} 7. O-O {[%clk 00:22:12]}
{[%emt 00:02:18]} O-O {[%clk 00:25:16]} {[%emt 00:00:08]} 8. Qe2 {[%clk
00:19:52]} {[%emt 00:02:27]} Bg4 {[%clk 00:25:23]} {[%emt 00:00:08]} 9. Rad1
{[%clk 00:18:57]} {[%emt 00:01:04]} Ne5 {[%clk 00:25:23]} {[%emt 00:00:10]} 10.
d4 {[%clk 00:16:54]} {[%emt 00:02:13]} Nxf3+ {[%clk 00:25:27]} {[%emt
00:00:07]} 11. gxf3 {[%clk 00:16:59]} {[%emt 00:00:04]} Bh3 {[%clk 00:25:26]}
{[%emt 00:00:11]} 12. Rfe1 {[%clk 00:16:53]} {[%emt 00:00:16]} cxd4 {[%clk
00:25:30]} {[%emt 00:00:06]} 13. Rxd4 {[%clk 00:16:38]} {[%emt 00:00:25]} Qa5
{[%clk 00:25:18]} {[%emt 00:00:17]} 14. Nd5 {[%clk 00:16:09]} {[%emt 00:00:45]}
e6 {[%clk 00:21:35]} {[%emt 00:03:52]} 15. Ne7+ {[%clk 00:13:39]} {[%emt
00:02:39]} Kh8 {[%clk 00:19:07]} {[%emt 00:02:39]} 16. Rxd6 {[%clk 00:13:20]}
{[%emt 00:00:30]} Rfe8 {[%clk 00:18:22]} {[%emt 00:00:55]} 17. Bd2 {[%clk
00:11:21]} {[%emt 00:02:08]} Qc7 {[%clk 00:17:25]} {[%emt 00:01:05]} 18. e5
{[%clk 00:08:51]} {[%emt 00:02:43]} Qxe7 {[%clk 00:15:55]} {[%emt 00:01:40]} 19.
Qd3 {[%clk 00:08:28]} {[%emt 00:00:32]} Nd5 {[%clk 00:13:51]} {[%emt 00:02:15]}
20. Bxd5 {[%clk 00:07:42]} {[%emt 00:00:56]} exd5 {[%clk 00:13:59]} {[%emt
00:00:02]} 21. Rxd5 {[%clk 00:07:48]} {[%emt 00:00:04]} Red8 {[%clk 00:13:52]}
{[%emt 00:00:17]} 22. Bc3 {[%clk 00:07:28]} {[%emt 00:00:30]} Qg5+ {[%clk
00:13:47]} {[%emt 00:00:10]} 0-1



[ePGN "0.1;DGT LiveChess/2.2.6"]

[Event "MČR družstev mladších žáků 2024"]
[Site "Harrachov, Czech Republic"]
[Date "2024.06.15"]
[Round "7.28"]
[White "Sevcikova Terezie"]
[Black "Burel Jiri"]
[Result "1-0"]
[TimeControl "25+10"]
[WhiteFideId "23766425"]
[BlackFideId "23754915"]
[WhiteElo "1447"]
[BlackElo "1116"]

1. d4 {[%clk 00:25:17]} {[%emt 00:00:01]} d5 {[%clk 00:25:18]} {[%emt
00:00:03]} 2. Bf4 {[%clk 00:25:25]} {[%emt 00:00:02]} Nf6 {[%clk 00:25:20]}
{[%emt 00:00:07]} 3. e3 {[%clk 00:25:33]} {[%emt 00:00:02]} Bf5 {[%clk
00:25:18]} {[%emt 00:00:12]} 4. c3 {[%clk 00:25:42]} {[%emt 00:00:02]} e6
{[%clk 00:25:22]} {[%emt 00:00:06]} 5. Bd3 {[%clk 00:25:48]} {[%emt 00:00:04]}
Bxd3 {[%clk 00:25:10]} {[%emt 00:00:22]} 6. Qxd3 {[%clk 00:25:56]} {[%emt
00:00:02]} c5 {[%clk 00:25:10]} {[%emt 00:00:08]} 7. Nf3 {[%clk 00:25:52]}
{[%emt 00:00:17]} Nc6 {[%clk 00:25:12]} {[%emt 00:00:07]} 8. Nbd2 {[%clk
00:25:59]} {[%emt 00:00:03]} Qb6 {[%clk 00:24:43]} {[%emt 00:00:36]} 9. Qc2
{[%clk 00:26:07]} {[%emt 00:00:05]} Be7 {[%clk 00:24:39]} {[%emt 00:00:12]} 10.
O-O {[%clk 00:26:09]} {[%emt 00:00:10]} O-O {[%clk 00:24:24]} {[%emt 00:00:25]}
11. Rad1 {[%clk 00:24:36]} {[%emt 00:01:42]} Rac8 {[%clk 00:24:04]} {[%emt
00:00:27]} 12. Qb3 {[%clk 00:24:29]} {[%emt 00:00:20]} Qxb3 {[%clk 00:22:46]}
{[%emt 00:01:28]} 13. Nxb3 {[%clk 00:24:35]} {[%emt 00:00:04]} cxd4 {[%clk
00:22:34]} {[%emt 00:00:23]} 14. Nbxd4 {[%clk 00:24:33]} {[%emt 00:00:12]} h6
{[%clk 00:21:51]} {[%emt 00:00:52]} 15. h3 {[%clk 00:24:28]} {[%emt 00:00:17]}
Ne4 {[%clk 00:19:42]} {[%emt 00:02:11]} 16. Nxc6 {[%clk 00:24:15]} {[%emt
00:00:30]} Rxc6 {[%clk 00:19:46]} {[%emt 00:00:05]} 17. Ne5 {[%clk 00:23:38]}
{[%emt 00:00:47]} Rcc8 {[%clk 00:18:40]} {[%emt 00:01:12]} 18. Nf3 {[%clk
00:22:13]} {[%emt 00:01:39]} Rc5 {[%clk 00:14:42]} {[%emt 00:03:59]} 19. Nd2
{[%clk 00:21:44]} {[%emt 00:00:49]} Nxd2 {[%clk 00:14:34]} {[%emt 00:00:18]} 20.
Rxd2 {[%clk 00:21:52]} {[%emt 00:00:02]} Rd8 {[%clk 00:14:13]} {[%emt
00:00:22]} 21. Rfd1 {[%clk 00:21:40]} {[%emt 00:00:29]} Rcc8 {[%clk 00:14:02]}
{[%emt 00:00:18]} 22. Kf1 {[%clk 00:20:10]} {[%emt 00:01:44]} Kf8 {[%clk
00:13:33]} {[%emt 00:00:37]} 23. Ke2 {[%clk 00:20:16]} {[%emt 00:00:05]} Bc5
{[%clk 00:13:02]} {[%emt 00:00:34]} 24. e4 {[%clk 00:19:59]} {[%emt 00:00:36]}
Rd7 {[%clk 00:10:06]} {[%emt 00:03:02]} 25. exd5 {[%emt 00:00:11]} Rcd8 {[%clk
00:09:00]} {[%emt 00:01:12]} 26. dxe6 {[%clk 00:19:50]} {[%emt 00:00:26]} Rxd2+
{[%clk 00:09:02]} {[%emt 00:00:07]} 27. Rxd2 {[%clk 00:19:58]} {[%emt
00:00:02]} Rxd2+ {[%clk 00:09:01]} {[%emt 00:00:11]} 28. Bxd2 {[%clk 00:20:05]}
{[%emt 00:00:04]} fxe6 {[%clk 00:09:05]} {[%emt 00:00:05]} 29. Be3 {[%clk
00:20:12]} {[%emt 00:00:04]} Bxe3 {[%clk 00:08:51]} {[%emt 00:00:24]} 30. Kxe3
{[%clk 00:20:21]} {[%emt 00:00:01]} Ke7 {[%clk 00:08:57]} {[%emt 00:00:03]} 31.
f4 {[%clk 00:20:23]} {[%emt 00:00:09]} Kd6 {[%clk 00:08:59]} {[%emt 00:00:07]}
32. Kd4 {[%clk 00:20:31]} {[%emt 00:00:03]} b6 {[%clk 00:08:49]} {[%emt
00:00:19]} 33. g4 {[%clk 00:20:36]} {[%emt 00:00:05]} g6 {[%clk 00:08:43]}
{[%emt 00:00:06]} 34. h4 {[%clk 00:20:39]} {[%emt 00:00:07]} a6 {[%clk
00:08:46]} {[%emt 00:00:16]} 35. h5 {[%clk 00:20:36]} {[%emt 00:00:15]} gxh5
{[%clk 00:08:31]} {[%emt 00:00:25]} 36. gxh5 {[%clk 00:19:43]} {[%emt
00:01:03]} b5 {[%clk 00:08:22]} {[%emt 00:00:18]} 37. b4 {[%clk 00:19:47]}
{[%emt 00:00:07]} Ke7 {[%clk 00:07:49]} {[%emt 00:00:42]} 38. Ke5 {[%clk
00:19:43]} {[%emt 00:00:14]} Kf7 {[%clk 00:07:49]} {[%emt 00:00:08]} 39. f5
{[%clk 00:19:10]} {[%emt 00:00:46]} exf5 {[%clk 00:07:48]} {[%emt 00:00:11]} 40.
Kxf5 {[%clk 00:19:19]} Kg7 {[%clk 00:07:50]} {[%emt 00:00:07]} 41. Ke6 {[%clk
00:19:10]} {[%emt 00:00:16]} Kg8 {[%clk 00:07:43]} {[%emt 00:00:20]} 42. Kf6
{[%clk 00:19:14]} {[%emt 00:00:06]} Kh7 {[%clk 00:07:51]} {[%emt 00:00:03]} 43.
Kf7 {[%clk 00:19:22]} {[%emt 00:00:02]} Kh8 {[%clk 00:07:57]} {[%emt 00:00:04]}
44. Kg6 {[%clk 00:19:28]} {[%emt 00:00:04]} Kg8 {[%clk 00:08:04]} {[%emt
00:00:02]} 45. Kxh6 {[%clk 00:19:36]} {[%emt 00:00:02]} Kh8 {[%clk 00:08:01]}
{[%emt 00:00:14]} 46. Kg6 {[%clk 00:19:44]} {[%emt 00:00:01]} Kg8 {[%clk
00:08:09]} {[%emt 00:00:02]} 47. Kf6 {[%clk 00:19:52]} {[%emt 00:00:03]} Kh7
{[%clk 00:08:18]} {[%emt 00:00:01]} 48. Ke6 {[%clk 00:20:00]} {[%emt 00:00:02]}
1-0



[ePGN "0.1;DGT LiveChess/2.2.6"]